bitfinex-derivatives/quotes_ETHF0:USTF0_20241026
["timestamp","ask_amount","ask_price","bid_price","bid_amount"]
[1729949596186,3.2078,2475.5,2475.1,2.84083452]
[1729949596391,0.40445,2475.3,2475.1,3.24531452]
[1729949596593,0.4124,2475.2,2475.1,3.24531452]
[1729949596790,0.8516,2475.2,2475.1,3.24531452]
[1729949597083,0.4317,2475.4,2475.3,0.40445]
[1729949597290,0.4317,2475.4,2475.3,3.24528452]
[1729949597584,0.83614,2475.4,2475.1,3.24530452]
[1729949597789,0.83614,2475.4,2475.1,2.84083452]
[1729949597994,0.83614,2475.4,2475.2,0.40446]
[1729949598291,0.4317,2475.4,2475.3,0.40445]
[1729949600287,2.54940307,2475.4,2475.3,3.24528452]
[1729949601889,2.11770307,2475.4,2475.3,7.28528452]
[1729949602189,5.32550307,2475.5,2475.4,0.40443]
[1729949604990,3.2078,2475.5,2475.1,2.84083452]
[1729949605197,2.11862871,2475.4,2475.3,0.40444]
[1729949606897,2.64704131,2475.5,2475.1,2.84083452]
[1729949607098,3.05148131,2475.4,2475.2,0.40447]
[1729949607286,3.08194131,2475.3,2475.2,0.40447]
[1729949607801,3.08194131,2475.3,2475.1,2.84083452]
[1729949608111,0.4266,2475.2,2475.1,3.24530452]
[1729949608304,0.4266,2475.2,2475.1,0.40447]
[1729949609002,0.4266,2475.2,2474.9,2.84083452]
[1729949609003,0.83107,2475.2,2474.9,2.84083452]
[1729949609198,2.11793528,2475.0,2474.9,0.40451]
[1729949609503,2.11793528,2475.0,2474.8,3.61232]
[1729949609695,2.11793528,2474.9,2474.8,3.61232]
[1729949610300,2.11793528,2474.9,2474.8,4.51940212]
[1729949610496,2.11793528,2474.9,2474.8,4.92393212]
[1729949611802,2.11793528,2475.0,2474.9,0.40452]
[1729949612092,2.11793528,2475.0,2474.9,1.31160212]
[1729949612599,2.11793528,2475.0,2474.9,1.71612212]
[1729949613099,2.11793528,2475.0,2474.9,1.31160212]
[1729949613296,2.11793528,2475.0,2474.9,1.71612212]
[1729949613799,2.11793528,2475.0,2474.9,1.31160212]
[1729949614003,2.11793528,2475.0,2474.9,1.71612212]
[1729949615394,2.11793528,2475.0,2474.9,1.31160212]
[1729949615591,2.11793528,2475.0,2474.9,1.71612212]
[1729949615793,0.4206,2475.1,2475.0,0.4045]
[1729949615999,0.4206,2475.1,2475.0,1.71610212]
[1729949616190,2.53645506,2475.1,2475.0,1.71610212]
[1729949621402,0.4206,2475.1,2475.0,1.71610212]
[1729949623303,2.00674902,2475.1,2475.0,1.71610212]
[1729949624502,0.4206,2475.1,2475.0,1.71610212]
[1729949624710,0.82508,2475.1,2475.0,1.71610212]
[1729949625003,2.94093506,2475.1,2475.0,1.71610212]
[1729949625392,2.94093506,2475.1,2475.0,1.31160212]
[1729949625800,0.4045,2475.0,2474.9,1.31160212]
[1729949626098,4.4606,2475.1,2474.8,0.40453]
[1729949626099,0.40452,2474.9,2474.8,0.40453]
[1729949626302,2.11408281,2474.9,2474.7,0.40454]
[1729949626506,0.40455,2474.7,2474.6,3.61236]
[1729949626709,1.58547218,2474.7,2474.6,3.61236]
[1729949626909,2.03257218,2474.7,2474.6,3.61236]
[1729949627406,2.03257218,2474.7,2474.6,4.51940212]
[1729949627407,2.43712218,2474.7,2474.6,4.51940212]
[1729949627706,2.03257218,2474.7,2474.6,4.92397212]
[1729949630013,1.58547218,2474.7,2474.6,4.92397212]
[1729949630215,2.45707218,2474.8,2474.6,4.51940212]
[1729949630513,1.58547218,2474.7,2474.6,3.61237]
[1729949630902,2.45707218,2474.8,2474.7,0.40455]
[1729949631106,0.8716,2474.8,2474.7,1.71615212]
[1729949631906,2.98568281,2474.8,2474.7,1.71615212]
[1729949632802,2.98568281,2474.8,2474.7,0.40455]
[1729949632997,2.98568281,2474.8,2474.7,1.71615212]
[1729949639016,2.55378281,2474.8,2474.7,1.71615212]
[1729949639213,2.11408281,2474.9,2474.7,5.35240212]
[1729949639512,2.11408281,2474.9,2474.8,1.71613212]
[1729949639705,2.11408281,2475.0,2474.9,0.40452]
[1729949639908,2.11408281,2475.0,2474.9,1.71612212]
[1729949641709,2.56438281,2475.1,2475.0,0.4045]
[1729949641911,2.11408281,2475.1,2475.0,1.71610212]
[1729949642417,2.11784833,2475.1,2475.0,1.31160212]
[1729949642718,2.11784833,2475.1,2475.0,1.71610212]
[1729949643125,2.11784833,2475.1,2475.0,1.31160212]
[1729949643419,2.11784833,2475.1,2475.0,1.71610212]
[1729949645815,2.11784833,2475.2,2475.0,6.66320424]
[1729949646108,1.58843934,2475.2,2475.1,5.76750212]
[1729949646311,1.58843934,2475.3,2475.1,6.20370212]
[1729949646521,1.58843934,2475.3,2475.2,5.75607212]
[1729949647216,0.4313,2475.4,2475.3,0.40445]
[1729949647217,2.01973934,2475.4,2475.3,0.40445]
[1729949647416,1.58843934,2475.4,2475.3,1.71605212]
[1729949647612,1.58843934,2475.4,2475.3,5.75605212]
[1729949648016,4.79623934,2475.5,2475.4,0.40443]
[1729949648215,4.79610353,2475.5,2475.4,1.71603212]
[1729949648419,1.58830353,2475.5,2475.4,5.75603212]
[1729949648916,1.58830353,2475.6,2475.5,0.40442]
[1729949649113,1.58830353,2475.6,2475.5,1.71602212]
[1729949649310,1.58804457,2475.6,2475.5,5.75522212]
[1729949649820,2.53894833,2475.7,2475.6,0.4044]
[1729949650119,2.53894833,2475.7,2475.6,1.71600212]
[1729949651013,2.53894833,2475.7,2475.6,1.31160212]
[1729949651322,2.53894833,2475.7,2475.6,1.71600212]
[1729949651323,3.06814131,2475.7,2475.6,1.71600212]
[1729949651622,0.4211,2475.7,2475.6,1.71600212]
[1729949652218,0.4211,2475.7,2475.6,1.31160212]
[1729949652524,1.73270212,2475.7,2475.6,1.31160212]
[1729949652820,4.78413343,2475.7,2475.6,1.31160212]
[1729949653217,4.78413343,2475.7,2475.1,0.4159]
[1729949653516,1.58767901,2475.4,2475.3,0.40444]
[1729949653909,2.88627901,2475.4,2475.3,0.40444]
[1729949654424,2.03627901,2475.4,2475.3,0.40444]
[1729949654724,0.4486,2475.4,2475.3,0.40444]
[1729949654918,0.4486,2475.4,2475.3,1.71604212]
[1729949663427,0.4486,2475.4,2475.3,1.31160212]
[1729949663633,6.07627901,2475.4,2474.9,3.2078]
[1729949663921,2.52138653,2475.2,2475.1,1.31160212]
[1729949664331,4.4564,2475.2,2475.1,1.31160212]
[1729949664528,5.76800212,2475.2,2475.0,1.31160212]
[1729949664724,4.44449,2475.1,2475.0,1.31160212]
[1729949665333,4.04,2475.1,2475.0,1.31160212]
[1729949665627,0.4045,2475.0,2474.9,1.31160212]
[1729949665826,2.11426879,2475.0,2474.9,1.31160212]
[1729949666019,6.15506879,2475.0,2474.9,1.31160212]
[1729949666222,6.55956879,2475.0,2474.9,1.31160212]
[1729949666428,6.55956879,2475.0,2474.8,1.31160212]
[1729949666429,8.56020212,2475.0,2474.8,1.31160212]
[1729949666727,2.51858819,2474.9,2474.8,1.31160212]
[1729949666927,4.8787,2474.9,2474.8,1.31160212]
[1729949667129,7.3972105,2474.9,2474.8,1.31160212]
[1729949667332,6.9926905,2474.9,2474.8,1.31160212]
[1729949667533,7.3972105,2474.9,2474.8,1.31160212]
[1729949667832,6.9926905,2474.9,2474.8,1.31160212]
[1729949668231,6.9926905,2474.9,2474.8,1.71613212]
[1729949669130,4.8787,2474.9,2474.8,1.31160212]
[1729949669328,6.9926905,2474.9,2474.8,1.31160212]
[1729949669632,6.9926905,2474.9,2474.8,1.71613212]
[1729949671223,10.2004905,2474.9,2474.8,1.71613212]
[1729949672528,4.0457,2474.9,2474.8,1.71613212]
[1729949673534,0.4257,2474.9,2474.8,1.71613212]
[1729949673727,2.01113522,2474.9,2474.8,1.71613212]
[1729949678635,1.58543522,2474.9,2474.8,1.71613212]
[1729949678833,1.58543522,2475.0,2474.9,0.40452]
[1729949679032,2.9674905,2475.2,2475.0,0.4045]
[1729949679033,1.58543522,2475.1,2475.0,0.4045]
[1729949679233,2.02253522,2475.2,2475.0,2.62320424]
[1729949679442,1.58543522,2475.2,2475.1,1.71608212]
[1729949679734,4.79323522,2475.3,2475.1,1.31160212]
[1729949679930,4.79323522,2475.3,2475.1,0.40448]
[1729949679931,1.05751194,2475.2,2475.1,0.40448]
[1729949680133,1.05751194,2475.2,2475.1,1.71608212]
[1729949680336,0.69870788,2475.2,2475.1,1.71608212]
[1729949680739,1.58543522,2475.2,2475.1,1.71608212]
[1729949681740,1.58543522,2475.3,2475.2,0.40447]
[1729949681933,2.5604905,2475.4,2475.3,0.40445]
[1729949682137,2.5604905,2475.4,2475.3,1.71605212]
[1729949682338,2.5604905,2475.4,2475.3,1.31160212]
[1729949682943,2.5604905,2475.4,2475.3,1.71605212]
[1729949683152,2.9649205,2475.4,2475.3,1.31160212]
[1729949683334,2.5604905,2475.4,2475.3,1.31160212]
[1729949683733,2.5604905,2475.4,2475.3,1.71605212]
[1729949684136,0.4465,2475.4,2475.3,1.71605212]
[1729949685142,2.03313632,2475.4,2475.3,1.71605212]
[1729949685445,2.03313632,2475.4,2475.3,1.31160212]
[1729949685645,2.03313632,2475.4,2475.3,1.71605212]
[1729949685840,0.4465,2475.4,2475.3,1.71605212]
[1729949687442,2.5604905,2475.4,2475.3,1.31160212]
[1729949687739,2.5604905,2475.4,2475.3,1.71605212]
[1729949688145,0.4465,2475.4,2475.3,1.71605212]
[1729949688947,2.0334092,2475.4,2475.3,1.71605212]
[1729949689149,0.4465,2475.4,2475.3,1.71605212]
[1729949689448,2.03339405,2475.4,2475.3,1.71605212]
[1729949689641,2.03344553,2475.4,2475.3,1.71605212]
[1729949690344,0.4465,2475.4,2475.3,1.71605212]
[1729949690940,2.03338491,2475.4,2475.3,1.71605212]
[1729949691142,1.58688491,2475.4,2475.3,1.71605212]
[1729949692047,1.58688491,2475.4,2475.3,5.75605212]
[1729949692746,1.58688491,2475.5,2475.4,0.40443]
[1729949692945,1.58688491,2475.5,2475.4,2.53853212]
[1729949702047,1.58688491,2475.6,2475.5,0.40442]
[1729949702249,1.58688491,2475.7,2475.6,0.4044]
[1729949702454,1.58688491,2475.8,2475.7,0.40439]
[1729949702751,5.24418491,2475.9,2475.8,0.40437]
[1729949702947,5.24418491,2475.9,2475.8,2.57967212]
[1729949703650,2.03638491,2475.9,2475.8,2.57967212]
[1729949703849,1.58688491,2475.9,2475.8,7.93047424]
[1729949704156,1.58688491,2476.0,2475.9,0.40435]
[1729949704451,1.58688491,2476.0,2475.9,1.71595212]
[1729949706342,1.58688491,2476.0,2475.9,1.31160212]
[1729949707353,1.58537571,2476.0,2475.9,1.31160212]
[1729949707550,1.71594212,2476.0,2475.8,1.31160212]
[1729949707752,2.0123506,2475.9,2475.8,1.31160212]
[1729949707948,0.427,2475.9,2475.8,1.31160212]
[1729949708153,0.40438,2475.8,2475.5,0.40441]
[1729949708355,2.02123797,2475.7,2475.6,1.31160212]
[1729949708555,2.42562797,2475.7,2475.6,1.31160212]
[1729949709559,2.42556512,2475.7,2475.6,1.31160212]
[1729949709757,0.84019,2475.7,2475.6,1.31160212]
[1729949710753,0.4358,2475.7,2475.6,1.31160212]
[1729949712356,0.4358,2475.7,2475.6,1.71600212]
[1729949713353,0.4358,2475.7,2475.6,1.31160212]
[1729949713560,2.5497905,2475.7,2475.6,1.31160212]
[1729949713954,2.5497905,2475.7,2475.6,1.71600212]
[1729949716757,2.5497905,2475.7,2475.6,1.31160212]
[1729949716958,2.5497905,2475.7,2475.6,1.71600212]
[1729949717459,2.5497905,2475.7,2475.6,1.31160212]
[1729949717659,2.5497905,2475.7,2475.6,1.71600212]
[1729949718055,2.5497905,2475.7,2475.6,1.31160212]
[1729949718255,2.9541805,2475.7,2475.6,1.31160212]
[1729949718464,0.84019,2475.7,2475.6,1.31160212]
[1729949718656,3.48723131,2475.7,2475.6,1.31160212]
[1729949718857,7.12204131,2475.7,2475.5,1.31160212]
[1729949719060,7.09066131,2475.6,2475.5,1.31160212]
[1729949719458,0.40442,2475.5,2475.4,1.31160212]
[1729949719660,0.8487,2475.5,2475.4,1.31160212]
[1729949719962,0.8487,2475.5,2475.4,1.71603212]
[1729949720359,0.8487,2475.5,2475.4,1.31160212]
[1729949720557,3.49492565,2475.5,2475.4,1.71603212]
[1729949720758,3.89934565,2475.5,2475.4,1.31160212]
[1729949721254,2.96604455,2475.5,2475.4,1.71603212]
[1729949721664,2.52764455,2475.5,2475.4,1.71603212]
[1729949724468,0.4103,2475.5,2475.4,1.71603212]
[1729949724955,3.05652565,2475.5,2475.4,1.71603212]
[1729949725371,0.4103,2475.5,2475.4,1.71603212]
[1729949727265,3.05652565,2475.5,2475.4,1.71603212]
[1729949727462,0.4103,2475.5,2475.4,1.71603212]
[1729949727868,3.06002649,2475.5,2475.4,1.71603212]
[1729949729169,0.4103,2475.5,2475.4,1.71603212]
[1729949729870,3.06037538,2475.5,2475.4,1.71603212]
[1729949733878,0.4103,2475.5,2475.4,1.71603212]
[1729949734386,2.65007538,2475.6,2475.5,0.40442]
[1729949734580,2.65007538,2475.6,2475.5,1.71602212]
[1729949735075,2.65007538,2475.6,2475.5,5.75522212]
[1729949735278,2.12001923,2475.6,2475.5,5.75522212]
[1729949735680,2.12001923,2475.6,2475.5,6.60692212]
[1729949735875,1.5899542,2475.6,2475.5,6.60692212]
[1729949736184,2.12001923,2475.7,2475.6,0.4044]
[1729949736383,2.12001923,2475.7,2475.6,2.12680212]
[1729949736686,2.12001923,2475.7,2475.6,6.16600212]
[1729949738391,2.12001923,2475.8,2475.7,0.40439]
[1729949738591,2.12001923,2475.8,2475.7,1.71599212]
[1729949740688,2.65007538,2475.9,2475.8,0.40437]
[1729949740893,2.65007538,2475.9,2475.8,1.71597212]
[1729949741692,2.64928278,2475.9,2475.8,1.31160212]
[1729949741986,2.64928564,2475.9,2475.8,1.71597212]
[1729949742786,1.73030212,2476.1,2475.8,1.71597212]
[1729949743089,5.31108169,2476.1,2476.0,1.31160212]
[1729949743394,2.13463212,2476.1,2476.0,1.31160212]
[1729949745189,2.13463212,2476.1,2476.0,1.71594212]
[1729949745388,0.4187,2476.1,2476.0,1.71594212]
[1729949747695,0.82302,2476.1,2476.0,1.71594212]
[1729949748594,0.82302,2476.1,2476.0,1.31160212]
[1729949748786,2.13462212,2476.1,2476.0,1.31160212]
[1729949749183,1.73030212,2476.1,2475.9,1.71594212]
[1729949749392,0.40434,2476.0,2475.9,1.71594212]
[1729949750199,0.40434,2476.0,2475.9,1.31160212]
[1729949750993,0.40434,2476.0,2475.9,1.71595212]
[1729949751597,0.40434,2476.0,2475.9,1.31160212]
[1729949751998,0.40434,2476.0,2475.9,1.71595212]
[1729949752200,6.80294957,2476.1,2476.0,0.40434]
[1729949752494,4.03082,2476.1,2476.0,1.71594212]
[1729949753191,3.6265,2476.1,2476.0,1.71594212]
[1729949753396,4.03082,2476.1,2476.0,1.71594212]
[1729949753798,7.20726957,2476.1,2476.0,1.71594212]
[1729949754297,7.20726957,2476.1,2476.0,0.40434]
[1729949754899,3.99946957,2476.1,2476.0,0.40434]
[1729949755102,7.20726957,2476.1,2476.0,0.40434]
[1729949755393,7.21244957,2476.1,2476.0,0.40434]
[1729949755799,4.036,2476.1,2476.0,0.40434]
[1729949756100,7.21244957,2476.1,2476.0,1.71594212]
[1729949756602,7.61676957,2476.1,2476.0,1.71594212]
[1729949756994,7.21244957,2476.1,2476.0,1.71594212]
[1729949757191,4.036,2476.1,2476.0,1.71594212]
[1729949757395,7.61676957,2476.1,2476.0,1.71594212]
[1729949758802,4.40896957,2476.1,2476.0,1.71594212]
[1729949759097,4.40896957,2476.1,2476.0,1.31160212]
[1729949759298,4.00464957,2476.1,2475.9,1.71594212]
[1729949759496,0.40434,2476.0,2475.9,1.71594212]
[1729949760194,4.00464957,2476.1,2476.0,0.40434]
[1729949760599,0.8282,2476.1,2476.0,0.40434]
[1729949760996,0.40434,2476.0,2475.9,1.71595212]
[1729949761502,3.58078957,2476.0,2475.9,1.71595212]
[1729949761700,4.40897957,2476.1,2475.9,1.71595212]
[1729949761902,9.35465169,2476.1,2475.6,0.4108]
[1729949762102,2.64937518,2475.7,2475.6,1.71600212]
[1729949762293,6.78860957,2475.9,2475.8,0.40437]
[1729949762496,6.78860957,2475.9,2475.8,1.31160212]
[1729949762692,10.82780957,2475.9,2475.8,1.31160212]
[1729949762902,7.65136,2475.9,2475.8,1.31160212]
[1729949763101,7.65136,2475.9,2475.8,1.71597212]
[1729949763493,7.65136,2475.9,2475.8,1.31160212]
[1729949764095,3.17644957,2476.0,2475.8,1.31160212]
[1729949764297,4.40897957,2476.1,2476.0,0.40434]
[1729949764503,4.40897957,2476.1,2476.0,1.71594212]
[1729949765409,1.23253,2476.1,2476.0,1.71594212]
[1729949765906,1.23252,2476.1,2476.0,1.71594212]
[1729949767307,4.40896957,2476.1,2476.0,0.40434]
[1729949769207,4.00464957,2476.1,2476.0,1.71594212]
[1729949769909,4.40896957,2476.1,2476.0,1.71594212]
[1729949770112,4.00464957,2476.1,2476.0,1.71594212]
[1729949770508,4.40896957,2476.1,2476.0,1.71594212]
[1729949773809,0.40434,2476.0,2475.9,0.40435]
[1729949774010,3.58494872,2476.0,2475.9,0.40435]
[1729949774203,7.62414872,2476.0,2475.9,0.40435]
[1729949774805,0.40435,2475.9,2475.8,2.15876212]
[1729949775610,3.58495872,2475.9,2475.8,2.15876212]
[1729949776009,3.18060872,2475.9,2475.8,2.15876212]
[1729949776514,3.58495872,2475.9,2475.8,2.15876212]
[1729949776706,3.18060872,2475.9,2475.8,2.15876212]
[1729949777107,3.58494872,2476.0,2475.8,2.15876212]
[1729949777500,3.58494872,2476.0,2475.9,1.31160212]
[1729949777901,7.62414872,2476.0,2475.9,1.31160212]
[1729949778407,7.21980872,2476.0,2475.9,1.31160212]
[1729949778605,7.62414872,2476.0,2475.9,1.31160212]
[1729949779812,7.21980872,2476.0,2475.9,1.31160212]
[1729949780012,3.18060872,2476.0,2475.9,1.71595212]
[1729949780207,3.18060872,2476.0,2475.9,2.14515212]
[1729949780706,3.18060872,2476.0,2475.9,1.74080212]
[1729949780707,3.58494872,2476.0,2475.9,1.74080212]
[1729949781106,3.58494872,2476.0,2475.9,2.14515212]
[1729949782912,3.58494872,2476.0,2475.9,1.74080212]
[1729949783416,3.58494872,2476.0,2475.9,2.14515212]
[1729949784416,0.40434,2476.0,2475.9,2.14515212]
[1729949784717,0.40434,2476.0,2475.9,1.74080212]
[1729949784914,4.93839784,2476.1,2475.9,2.14515212]
[1729949785119,3.18371196,2476.0,2475.9,2.14515212]
[1729949785310,3.18372755,2476.0,2475.9,2.14515212]
[1729949786715,3.18372755,2476.0,2475.9,1.74080212]
[1729949786716,3.58806755,2476.0,2475.9,1.74080212]
[1729949786914,3.58814168,2476.0,2475.9,2.14515212]
[1729949787115,3.18380168,2476.0,2475.9,2.14515212]
[1729949788920,3.58814168,2476.0,2475.9,1.74080212]
[1729949789221,3.58814168,2476.0,2475.9,2.14515212]
[1729949789615,3.18380168,2476.0,2475.9,2.14515212]
[1729949792321,3.59330168,2476.1,2475.9,1.74080212]
[1729949792622,3.59330168,2476.1,2476.0,1.71594212]
[1729949792821,0.4095,2476.1,2476.0,1.71594212]
[1729949793411,3.59303684,2476.1,2476.0,1.71594212]
[1729949793615,3.99735684,2476.1,2476.0,1.71594212]
[1729949793816,3.59303684,2476.1,2476.0,1.71594212]
[1729949794216,0.4095,2476.1,2476.0,1.71594212]
[1729949795127,3.59306231,2476.1,2476.0,1.71594212]
[1729949795924,3.59306231,2476.1,2476.0,2.15894212]
[1729949797224,0.4095,2476.1,2476.0,2.15894212]
[1729949801619,0.4095,2476.1,2476.0,1.71594212]
[1729949806527,3.30351039,2476.4,2476.3,0.40429]
[1729949806723,2.1210998,2476.4,2476.3,7.06589424]
[1729949806921,2.1210998,2476.5,2476.4,0.40427]
[1729949807124,0.4214,2477.0,2476.9,0.40419]
[1729949807327,0.4214,2477.0,2476.9,1.71579212]
[1729949807623,0.4214,2477.0,2476.9,1.31160212]
[1729949808027,0.4214,2477.0,2476.9,1.71579212]
[1729949808326,0.82557,2477.0,2476.9,1.31160212]
[1729949808528,0.4214,2477.0,2476.9,1.31160212]
[1729949808725,0.4214,2477.0,2476.9,1.71579212]
[1729949809829,0.4214,2477.0,2476.9,2.15499212]
[1729949810728,3.6391,2477.2,2477.1,0.40416]
[1729949811031,0.4313,2477.2,2477.1,1.71576212]
[1729949813127,3.0769106,2477.2,2477.1,1.71576212]
[1729949813730,0.4313,2477.2,2477.1,1.71576212]
[1729949814232,2.54619622,2477.2,2477.1,1.71576212]
[1729949814439,0.4313,2477.2,2477.1,1.71576212]
[1729949814633,2.54619795,2477.2,2477.1,1.71576212]
[1729949814926,0.4313,2477.2,2477.1,1.71576212]
[1729949815127,2.54507305,2477.2,2477.1,1.71576212]
[1729949816234,0.4313,2477.2,2477.1,1.71576212]
[1729949817431,2.01526356,2477.2,2477.1,1.71576212]
[1729949820133,0.4313,2477.2,2477.1,1.71576212]
[1729949820528,2.01526356,2477.2,2477.1,1.71576212]
[1729949820721,0.40416,2477.1,2476.9,0.40418]
[1729949820923,1.98812356,2477.1,2477.0,1.31160212]
[1729949821135,0.40418,2477.0,2476.7,3.645]
[1729949821323,0.854,2476.9,2476.8,0.4042]
[1729949821529,0.854,2476.9,2476.7,3.645]
[1729949821724,0.4308,2476.8,2476.2,4.0598]
[1729949821934,0.4308,2476.8,2476.6,0.40423]
[1729949821935,2.41802542,2476.8,2476.6,0.40423]
[1729949822339,2.41802542,2476.8,2476.5,0.40424]
[1729949822340,1.58300542,2476.7,2476.5,0.40424]
[1729949822640,1.98722542,2476.7,2476.5,0.40424]
[1729949822828,1.58300542,2476.7,2476.6,1.31160212]
[1729949823029,1.98722542,2476.7,2476.6,1.31160212]
[1729949823223,1.58300542,2476.7,2476.5,1.31160212]
[1729949823434,1.98725542,2476.6,2476.5,1.31160212]
[1729949823834,0.40425,2476.6,2476.5,1.31160212]
[1729949824043,1.98752305,2476.6,2476.5,1.31160212]
[1729949824338,0.40425,2476.6,2476.5,1.31160212]
[1729949826141,0.40424,2476.6,2476.5,1.31160212]
[1729949826328,4.44184,2476.6,2476.5,1.31160212]
[1729949826638,6.55561305,2476.6,2476.5,1.31160212]
[1729949828328,2.51801305,2476.6,2476.5,1.31160212]
[1729949830332,0.40424,2476.6,2476.5,1.31160212]
[1729949831042,2.51800305,2476.7,2476.5,1.31160212]
[1729949831240,2.51800305,2476.7,2476.6,1.31160212]
[1729949831646,6.55560305,2476.7,2476.6,1.31160212]
[1729949831841,4.44183,2476.7,2476.6,1.31160212]
[1729949832041,6.55410853,2476.7,2476.6,1.31160212]
[1729949833544,6.14987853,2476.7,2476.5,1.31160212]
[1729949833748,2.51651853,2476.6,2476.5,1.31160212]
[1729949833938,6.55411853,2476.6,2476.5,1.31160212]
[1729949834749,9.76191853,2476.6,2476.5,1.31160212]
[1729949835543,8.96124212,2476.6,2476.5,1.31160212]
[1729949836044,11.60685272,2476.6,2476.5,1.31160212]
[1729949839355,11.60685272,2476.6,2476.4,0.40427]
[1729949839356,0.40431,2476.2,2476.1,1.71592212]
[1729949839647,3.61211,2476.2,2476.1,1.71592212]
[1729949839851,3.2078,2476.2,2476.1,1.71592212]
[1729949840238,5.3217709,2476.2,2476.1,1.71592212]
[1729949840456,5.32171771,2476.2,2476.1,1.71592212]
[1729949840741,3.2078,2476.2,2476.1,1.71592212]
[1729949840945,5.32172222,2476.2,2476.1,1.71592212]
[1729949841243,0.4488,2476.4,2476.1,1.31160212]
[1729949841244,2.56272222,2476.4,2476.1,1.31160212]
[1729949841438,1.58529221,2476.2,2476.1,0.40432]
[1729949842147,1.58529221,2476.2,2476.1,1.71592212]
[1729949842349,1.58537007,2476.3,2476.2,0.4043]
[1729949842542,1.58537007,2476.3,2476.2,1.71590212]
[1729949843146,1.58543374,2476.3,2476.2,1.71590212]
[1729949848149,2.89703586,2476.3,2476.0,0.445]
[1729949848345,4.35816274,2476.1,2475.9,0.40435]
[1729949848545,4.35816274,2476.1,2475.8,1.31160212]
[1729949848546,0.40435,2475.9,2475.8,1.31160212]
[1729949848746,6.63422402,2476.0,2475.8,1.31160212]
[1729949848944,7.03856402,2476.0,2475.8,1.71597212]
[1729949850053,7.03856402,2476.0,2475.8,1.31160212]
[1729949850358,3.42577357,2475.9,2475.7,1.31160212]
[1729949850549,2.11417416,2475.8,2475.7,1.31160212]
[1729949850853,2.55127416,2475.8,2475.7,1.71599212]
[1729949851549,2.55127416,2475.8,2475.7,1.31160212]
[1729949851550,0.4371,2475.8,2475.7,1.31160212]
[1729949851959,0.4371,2475.8,2475.7,1.71599212]
[1729949852256,0.4371,2475.8,2475.7,1.31160212]
[1729949853257,2.02214532,2475.8,2475.7,1.71599212]
[1729949853550,1.58504532,2475.8,2475.7,1.71599212]
[1729949853949,1.58504532,2475.8,2475.7,7.06679424]
[1729949854153,1.58504532,2475.8,2475.7,5.35080212]
[1729949854355,1.58504532,2475.9,2475.8,0.40437]
[1729949854560,1.58504532,2475.9,2475.8,1.71597212]
[1729949856346,4.79284532,2475.9,2475.8,1.71597212]
[1729949857761,3.2078,2475.9,2475.8,1.71597212]
[1729949858854,3.2078,2475.9,2475.8,5.75517212]
[1729949860160,1.58504532,2476.1,2475.8,5.35080212]
[1729949860458,2.11417416,2476.2,2476.0,1.31160212]
[1729949860661,2.11417416,2476.2,2476.1,0.84322]
[1729949860959,7.03787628,2476.2,2476.1,0.4389]
[1729949861457,4.92370212,2476.2,2476.1,0.4389]
[1729949862360,4.92370212,2476.2,2475.9,1.71594212]
[1729949862361,0.40432,2476.1,2475.9,1.71594212]
[1729949862558,4.24082885,2476.1,2475.9,1.71594212]
[1729949862751,0.4393,2476.0,2475.9,1.71594212]
[1729949863263,2.55350673,2476.0,2475.9,1.31160212]
[1729949863558,2.55350673,2476.0,2475.9,1.71595212]
[1729949865248,0.4393,2476.0,2475.9,1.71595212]
[1729949867653,8.43234274,2476.0,2475.4,1.01109]
[1729949867853,5.22468274,2476.0,2475.8,0.40436]
[1729949868467,3.91704959,2476.0,2475.9,1.31160212]
[1729949868666,1.27084,2476.0,2475.9,1.31160212]
[1729949868961,3.91705602,2476.0,2475.9,1.31160212]
[1729949869158,1.27084,2476.0,2475.9,1.31160212]
[1729949869654,3.91720543,2476.0,2475.9,1.31160212]
[1729949869859,3.91720543,2476.0,2475.8,1.71596212]
[1729949870164,5.22880755,2476.0,2475.8,1.71596212]
[1729949870368,0.4256,2475.9,2475.8,1.71596212]
[1729949873069,2.54291305,2475.9,2475.8,1.71596212]
[1729949873364,0.4256,2475.9,2475.8,1.71596212]
[1729949873561,0.4256,2475.9,2475.8,0.40436]
[1729949874068,1.73720212,2475.9,2475.8,0.40436]
[1729949874467,4.38356755,2475.9,2475.8,0.40436]
[1729949877664,3.07196543,2475.9,2475.8,0.40436]
[1729949878164,2.64636543,2476.0,2475.8,5.35080212]
[1729949878375,2.64636543,2476.0,2475.9,2.12325212]
[1729949879866,2.64636543,2476.0,2475.9,0.81165]
[1729949880669,4.51940212,2476.1,2476.0,0.40434]
[1729949881366,3.2078,2476.1,2476.0,0.81664]
[1729949881574,5.85620692,2476.1,2476.0,0.81664]
[1729949882280,5.85620692,2476.1,2476.0,2.12824212]
[1729949883074,2.64840692,2476.1,2476.0,2.12824212]
[1729949883473,2.11889851,2476.1,2476.0,2.12824212]
[1729949884483,2.11889851,2476.1,2476.0,6.16664212]
[1729949884682,1.58903634,2476.2,2476.0,5.76230212]
[1729949884886,1.58903634,2476.2,2476.1,5.75432212]
[1729949885186,1.58903634,2476.2,2476.1,4.88362]
[1729949885387,1.58903634,2476.2,2476.1,6.19522212]
[1729949885591,2.11889851,2476.3,2476.1,5.79090212]
[1729949885889,2.11889851,2476.3,2476.2,5.75430212]
[1729949887581,2.54999851,2476.3,2476.2,5.75430212]
[1729949887986,2.11889851,2476.3,2476.2,5.75430212]
[1729949888691,3.96000904,2476.5,2476.3,0.40429]
[1729949888692,2.11782626,2476.4,2476.3,0.40429]
[1729949888891,3.96000904,2476.5,2476.3,1.74800212]
[1729949889088,3.96000904,2476.5,2476.4,0.40427]
[1729949894196,2.64840692,2476.5,2476.4,1.71587212]
[1729949894396,2.64840692,2476.5,2476.4,2.60027212]
[1729949894689,3.07950692,2476.6,2476.5,0.40426]
[1729949894888,3.07950692,2476.6,2476.5,1.71586212]
[1729949896097,3.07950692,2476.6,2476.5,1.31160212]
[1729949896292,3.07950692,2476.6,2476.5,1.71586212]
[1729949898584,0.4311,2476.6,2476.5,1.71586212]
[1729949900387,3.07950692,2476.6,2476.5,1.71586212]
[1729949900591,0.4311,2476.6,2476.5,1.71586212]
[1729949902993,0.4311,2476.6,2476.5,0.40426]
[1729949903199,0.07245631,2476.6,2476.5,0.40426]
[1729949904406,1.38405843,2476.6,2476.5,0.40426]
[1729949906797,0.07245631,2476.6,2476.5,0.40426]
[1729949907204,0.07245631,2476.6,2476.5,0.4180203]
[1729949908324,2.72086323,2476.6,2476.5,0.4180203]
[1729949908494,4.43670535,2476.6,2476.5,0.0137603]
[1729949910201,1.78829843,2476.6,2476.5,0.0137603]
[1729949912006,4.02954112,2476.6,2476.5,0.4180203]
[1729949912906,2.717939,2476.6,2476.5,0.4180203]